bitfinex/quotes_ETHUSD_20260207
["timestamp","ask_amount","ask_price","bid_price","bid_amount"]
[1770459045987,1.8729095,2010.5,2009.9,1.26008038]
[1770459046184,1.8729095,2010.5,2009.9,2.50392326]
[1770459046378,1.87287511,2010.5,2010.0,1.25908038]
[1770459047458,1.87287511,2010.5,2009.9,0.001]
[1770459047659,1.92822646,2010.4,2009.9,0.001]
[1770459049279,1.92822646,2010.4,2009.9,1.26008038]
[1770459050074,0.68465471,2010.4,2009.9,1.26008038]
[1770459051164,1.24551474,2010.5,2009.9,1.26008038]
[1770459052068,0.002,2010.5,2009.9,2.50392296]
[1770459053075,0.002,2010.5,2009.9,1.26008038]
[1770459053482,0.002,2010.5,2009.7,1.24392559]
[1770459053682,0.002,2010.5,2009.8,1.25908038]
[1770459053884,0.62961788,2010.5,2009.9,1.25908038]
[1770459054079,1.24353362,2010.4,2009.9,1.25908038]
[1770459056293,1.24353362,2010.4,2009.9,1.26008038]
[1770459056497,0.62961788,2010.5,2010.0,1.25908038]
[1770459056799,0.002,2010.3,2010.0,1.25908038]
[1770459057000,0.002,2010.5,2010.2,1.25908038]
[1770459058397,0.002,2010.5,2010.2,2.50273484]
[1770459058597,0.002,2010.5,2010.2,1.25908038]
[1770459058975,0.002,2010.5,2010.3,1.25908038]
[1770459059286,0.002,2010.8,2010.3,1.25908038]
[1770459059485,0.002,2010.8,2010.5,1.25908038]
[1770459061585,0.002,2010.8,2010.6,1.25908038]
[1770459061805,0.002,2011.1,2010.9,1.25908038]
[1770459063214,0.002,2011.1,2011.0,1.25908038]
[1770459064826,0.002,2011.3,2011.1,1.25908038]
[1770459066716,0.002,2011.3,2010.9,1.24317618]
[1770459066883,0.002,2011.3,2011.0,2.43158174]
[1770459067088,0.002,2011.3,2011.0,1.18841972]
[1770459068293,0.002,2011.3,2011.1,2.43152051]
[1770459068599,0.002,2011.3,2011.1,1.18841972]
[1770459070022,0.002,2011.3,2010.3,4.97418357]
[1770459070023,0.002,2011.3,2010.5,1.23363818]
[1770459070197,0.0571159,2011.2,2010.4,1.24351926]
[1770459070396,1.22621171,2011.2,2010.4,1.24351926]
[1770459070914,1.22621171,2011.2,2010.1,1.24371921]
[1770459070915,1.24310079,2011.1,2010.1,1.24371921]
[1770459071623,2.41217031,2011.2,2010.1,1.24371921]
[1770459071823,1.16909581,2011.2,2010.1,1.24371921]
[1770459072000,1.16909581,2011.2,2010.2,1.23363818]
[1770459072205,1.24497808,2011.3,2010.2,1.23363818]
[1770459072415,0.002,2011.3,2010.2,1.23363818]
[1770459072719,1.24498134,2011.3,2010.2,1.23363818]
[1770459073028,1.24498134,2011.3,2010.4,1.23363818]
[1770459074119,0.0571159,2011.1,2010.4,1.23363818]
[1770459075523,1.2431626,2011.0,2010.4,1.23363818]
[1770459075724,0.62728406,2010.9,2010.4,1.23363818]
[1770459076505,0.62728406,2010.9,2010.5,1.23363818]
[1770459076701,1.24314727,2011.1,2010.5,1.23363818]
[1770459079303,1.24497717,2011.3,2010.5,1.23363818]
[1770459079506,1.24497717,2011.3,2010.5,2.47710192]
[1770459080712,1.24497717,2011.3,2010.6,1.23363818]
[1770459081530,1.24497717,2011.3,2010.7,0.001]
[1770459081531,0.002,2011.3,2010.7,0.001]
[1770459081711,1.00247032,2011.3,2010.7,1.23463818]
[1770459081909,0.002,2011.1,2010.7,1.23463818]
[1770459083939,0.002,2011.1,2010.9,1.23363818]
[1770459086038,0.002,2011.1,2010.9,1.24318896]
[1770459086431,0.002,2011.1,2011.0,1.23363818]
[1770459087142,0.002,2011.1,2010.8,2.47688346]
[1770459087636,0.002,2011.1,2010.9,1.24322206]
[1770459087808,0.002,2011.1,2011.0,1.23363818]
[1770459088016,0.002,2011.1,2011.0,2.47680078]
[1770459089136,0.002,2011.1,2011.0,1.23363818]
[1770459089331,0.002,2011.1,2011.0,2.47680078]
[1770459091642,0.002,2011.3,2011.1,1.23363818]
[1770459091964,0.002,2011.7,2011.2,1.23363818]
[1770459093519,0.002,2011.7,2011.4,1.23363818]
[1770459093837,0.002,2011.6,2011.2,2.47666216]
[1770459094251,0.002,2011.5,2011.3,1.23363818]
[1770459095340,0.002,2011.7,2011.3,1.23363818]
[1770459095544,0.004,2011.7,2011.5,1.23363818]
[1770459097045,0.002,2011.6,2011.5,1.23363818]
[1770459098760,0.002,2011.6,2011.5,2.47649177]
[1770459101151,0.002,2011.6,2011.4,4.97161935]
[1770459101152,0.002,2011.6,2011.2,1.09963962]
[1770459101866,0.002,2011.5,2011.2,1.09963962]
[1770459102636,0.002,2011.7,2011.2,1.09963962]
[1770459102966,0.002,2011.6,2011.2,1.09963962]
[1770459103272,0.002,2011.6,2011.4,1.09963962]
[1770459104165,0.002,2011.7,2011.4,1.09963962]
[1770459104745,0.002,2012.0,2011.5,1.09963962]
[1770459104937,0.002,2012.2,2011.4,1.09963962]
[1770459105137,0.002,2012.2,2011.6,1.09963962]
[1770459105636,0.20509583,2012.2,2011.2,1.09963962]
[1770459105835,0.20309583,2012.0,2011.2,1.24302049]
[1770459106253,0.20309583,2012.0,2011.1,2.34269175]
[1770459106835,0.20309583,2012.0,2011.1,1.09963962]
[1770459107039,1.24260649,2011.9,2011.6,0.001]
[1770459108368,1.24457835,2012.0,2011.6,0.001]
[1770459112368,0.002,2012.0,2011.6,0.001]
[1770459115072,0.002,2012.2,2011.8,1.09963962]
[1770459115243,0.002,2012.2,2011.9,1.09963962]
[1770459116178,0.002,2012.2,2012.0,1.24254473]
[1770459116477,0.002,2012.2,2012.1,1.09963962]
[1770459116983,0.002,2012.2,2012.1,1.03963962]
[1770459118364,0.002,2012.2,2011.9,1.09963962]
[1770459119548,0.002,2012.0,2011.9,1.09963962]
[1770459120272,0.002,2012.2,2012.0,1.24254473]
[1770459120572,0.002,2012.9,2012.1,1.09963962]
[1770459122480,1.24211258,2012.7,2011.9,2.34223635]
[1770459123270,1.24211258,2012.7,2012.0,1.24254101]
[1770459123473,1.24211258,2012.7,2011.9,1.09963962]
[1770459123672,0.30020894,2012.5,2011.8,0.001]
[1770459123982,1.29922848,2012.7,2011.7,1.09963962]
[1770459124176,1.86751894,2012.6,2011.9,1.09963962]
[1770459124355,1.24223602,2012.5,2011.9,1.09963962]
[1770459124549,1.24223602,2012.5,2011.7,1.09963962]
[1770459125078,1.24223602,2012.5,2011.7,2.34236862]
[1770459125277,1.24223602,2012.5,2011.8,1.09963962]
[1770459125516,0.80785868,2012.4,2011.8,1.09963962]
[1770459126494,1.24235948,2012.3,2011.6,0.001]
[1770459127188,0.0571159,2012.1,2011.6,0.001]
[1770459128086,1.24235948,2012.3,2011.6,0.001]
[1770459129289,1.24235948,2012.3,2011.6,1.09548443]
[1770459129466,2.47127381,2012.3,2011.6,1.09548443]
[1770459129883,2.47127381,2012.3,2011.7,1.13029576]
[1770459130090,1.22891433,2012.3,2011.7,1.13029576]
[1770459130260,2.05020369,2012.4,2011.7,1.09448443]
[1770459130687,2.05020369,2012.4,2011.9,1.09448443]
[1770459131094,0.80785868,2012.4,2011.9,1.09448443]
[1770459131267,1.24228257,2012.5,2011.9,1.09448443]
[1770459131466,0.002,2012.4,2011.9,1.09448443]
[1770459132114,0.002,2012.4,2012.1,1.09448443]
[1770459133890,0.002,2012.4,2012.3,1.09448443]
[1770459134088,0.002,2012.6,2012.4,1.09448443]
[1770459134296,0.002,2012.9,2012.3,1.09448443]
[1770459136076,0.0571159,2012.8,2011.9,1.09448443]
[1770459136294,0.0571159,2012.8,2012.0,1.09448443]
[1770459136480,0.0571159,2012.8,2012.0,2.33702725]
[1770459136787,0.0571159,2012.8,2012.0,1.09448443]
[1770459137175,0.0571159,2012.8,2012.1,1.09448443]
[1770459137380,0.29980875,2012.8,2011.9,1.09448443]
[1770459137980,1.24211258,2012.7,2011.9,1.09448443]
[1770459138187,0.65103717,2012.6,2011.9,1.09448443]
[1770459138483,0.65103717,2012.6,2012.0,1.09448443]
[1770459139391,0.002,2012.9,2012.0,1.09448443]
[1770459140110,0.002,2012.9,2012.2,1.09448443]
[1770459142302,0.002,2012.9,2012.2,2.33690252]
[1770459142915,0.002,2012.9,2012.3,1.09448443]
[1770459143890,0.002,2012.7,2012.3,1.09448443]
[1770459145427,0.002,2012.7,2012.5,1.09448443]
[1770459145818,0.002,2012.9,2012.5,1.09448443]
[1770459146018,0.002,2012.9,2012.5,1.13035791]
[1770459146329,0.002,2012.9,2012.3,1.24235736]
[1770459146701,0.002,2012.9,2012.2,2.33686235]
[1770459147011,0.002,2012.9,2012.3,2.33683703]
[1770459147203,0.002,2012.9,2012.3,1.09448443]
[1770459148536,0.002,2012.9,2012.3,2.33679686]
[1770459148738,0.002,2012.9,2012.4,1.09448443]
[1770459149643,0.002,2012.9,2012.5,1.09448443]
[1770459151530,0.002,2012.9,2012.7,1.09448443]
[1770459153329,0.002,2012.9,2012.5,1.09448443]
[1770459154557,0.002,2012.9,2012.4,1.24228474]
[1770459155055,0.002,2012.9,2012.5,1.09448443]
[1770459155239,0.002,2012.9,2012.7,1.09448443]
[1770459155442,0.002,2012.9,2012.5,1.09448443]
[1770459155757,0.002,2012.9,2012.5,2.33670909]
[1770459155954,0.002,2012.9,2012.6,1.15587245]
[1770459156434,0.002,2012.7,2012.6,1.15587245]
[1770459156837,0.002,2012.7,2012.4,2.39813573]
[1770459157137,0.002,2012.7,2012.6,1.15587245]
[1770459158886,0.002,2012.7,2012.4,1.24225146]
[1770459159085,0.002,2012.7,2012.5,1.15587245]
[1770459160063,0.002,2012.7,2012.5,2.3981028]
[1770459160259,0.002,2012.7,2012.3,2.39819321]
[1770459160765,0.002,2012.7,2012.4,1.15587245]
[1770459161363,0.002,2012.7,2012.4,2.39816766]
[1770459161558,0.002,2012.7,2012.5,1.15587245]
[1770459163455,0.002,2012.7,2012.6,1.15587245]
[1770459166013,0.002,2012.7,2012.4,1.15587245]
[1770459166795,0.002,2012.7,2012.4,2.39815877]
[1770459167911,0.002,2012.7,2012.2,2.39928872]
[1770459168975,0.002,2012.7,2012.5,0.001]
[1770459172728,0.002,2012.7,2012.5,1.06022976]
[1770459174196,0.002,2012.7,2012.6,1.05922976]
[1770459175332,0.002,2012.7,2012.5,0.001]
[1770459177832,0.002,2012.7,2012.2,1.06022976]
[1770459178030,0.002,2012.7,2012.3,0.001]
[1770459179898,0.002,2012.7,2012.2,0.001]
[1770459180103,0.002,2012.7,2012.2,0.002]
[1770459180939,0.002,2012.5,2012.2,1.06122976]
[1770459181435,0.002,2012.7,2012.3,1.05922976]
[1770459181726,0.002,2012.9,2012.3,1.05922976]
[1770459182523,0.002,2012.9,2012.4,1.24229775]
[1770459182731,0.002,2012.9,2012.3,2.30154397]
[1770459182925,0.002,2012.9,2012.4,1.05922976]
[1770459185041,0.002,2012.9,2012.5,1.05922976]
[1770459186163,0.002,2012.9,2012.2,2.30778726]
[1770459186362,0.002,2012.9,2012.2,1.06537157]
[1770459186561,0.002,2012.9,2012.3,2.30672851]
[1770459186727,0.002,2012.9,2012.3,1.06437157]
[1770459187968,0.002,2012.9,2012.2,0.001]
[1770459189077,0.24330586,2012.9,2012.2,0.001]
[1770459189768,0.002,2012.9,2012.2,1.08607561]
[1770459190765,0.24327116,2012.9,2012.2,0.001]
[1770459192032,1.24205087,2012.8,2012.2,0.001]
[1770459192236,0.64535255,2012.7,2012.2,0.001]
[1770459192668,0.64535255,2012.7,2012.4,0.001]
[1770459193041,0.64735255,2012.7,2012.4,0.001]
[1770459194371,1.2421743,2012.6,2012.4,0.001]
[1770459196289,0.002,2012.7,2012.4,0.001]
[1770459198965,0.002,2012.7,2012.4,1.08607561]
[1770459201194,0.002,2012.7,2012.4,0.001]
[1770459204706,0.002,2012.7,2012.4,1.08607561]
[1770459205505,0.002,2012.7,2012.6,0.001]
[1770459205680,0.002,2012.5,2012.4,1.08607561]
[1770459206268,1.24398916,2012.9,2012.5,1.08507561]
[1770459207496,0.002,2012.9,2012.5,1.08507561]
[1770459208296,0.002,2012.9,2012.4,0.001]
[1770459208502,0.0571159,2012.8,2012.4,0.001]
[1770459209382,1.48506195,2012.7,2012.4,0.001]
[1770459209578,0.65106282,2012.6,2012.4,0.001]
[1770459210183,0.65106282,2012.6,2012.2,0.001]
[1770459211798,1.24223602,2012.5,2012.0,0.001]
[1770459211998,1.24223602,2012.5,2012.0,1.08607561]
[1770459214597,1.89325685,2012.6,2012.0,1.08607561]
[1770459214898,0.002,2012.9,2012.1,1.08507561]
[1770459214899,1.24403613,2012.9,2012.1,1.08507561]
[1770459215896,0.002,2012.9,2012.3,1.09531979]
[1770459217301,0.002,2012.5,2012.3,1.09531979]
[1770459218286,0.002,2012.5,2012.4,1.09531979]
[1770459220903,0.002,2012.5,2012.2,1.09631979]
[1770459221399,0.002,2012.5,2012.2,0.001]
[1770459223480,0.002,2012.5,2012.3,1.09531979]
[1770459225386,0.002,2012.5,2012.2,0.001]
[1770459229811,0.002,2012.3,2012.2,0.001]
[1770459230311,0.002,2012.3,2011.8,0.001]
[1770459230510,0.29970103,2012.2,2011.4,0.001]
[1770459230689,0.29970103,2012.2,2011.4,1.09831979]
[1770459230898,0.0571159,2011.9,2011.4,1.09831979]
[1770459231913,0.0571159,2011.9,2011.4,0.003]
[1770459232617,1.24266825,2011.8,2011.4,0.003]
[1770459232800,0.62704572,2011.7,2011.4,0.003]
[1770459234226,0.62704572,2011.7,2011.4,1.09831979]
[1770459234423,1.24242123,2012.2,2011.4,1.09831979]
[1770459234798,1.24242123,2012.2,2011.5,0.04966477]
[1770459235023,1.29953713,2012.2,2011.4,1.09831979]
[1770459235407,0.29959924,2011.9,2011.3,0.001]
[1770459235721,0.29959924,2011.9,2011.3,0.003]
[1770459236726,1.24266825,2011.8,2011.3,0.003]
[1770459238222,1.24266825,2011.8,2011.3,1.09831979]
[1770459238724,1.2427918,2011.6,2011.1,0.001]
[1770459239021,0.62710749,2011.5,2011.1,0.001]
[1770459239329,0.0571159,2011.4,2010.9,0.001]
[1770459240825,1.24297717,2011.3,2010.9,0.001]
[1770459241531,1.24278729,2011.7,2010.9,1.09631979]
[1770459241731,0.62136464,2011.6,2011.3,0.001]
[1770459244930,1.24285359,2011.5,2011.3,0.001]
[1770459246132,1.24266825,2011.8,2011.3,1.14933891]
[1770459246712,0.0571159,2011.7,2011.0,1.14833891]
[1770459246919,0.0571159,2011.4,2010.9,0.001]
[1770459247138,1.24297717,2011.3,2010.9,0.001]
[1770459251343,1.24297717,2011.3,2010.9,1.12227496]
[1770459253413,1.24285359,2011.5,2010.9,1.12227496]
[1770459253624,0.62711442,2011.4,2010.9,1.12227496]
[1770459254211,0.62711442,2011.4,2011.1,0.001]
[1770459254412,0.62911442,2011.4,2011.1,0.001]
[1770459255024,0.62911442,2011.4,2010.9,1.06327496]
[1770459255839,1.24297717,2011.3,2010.9,1.06327496]
[1770459256025,1.87204617,2011.4,2010.9,1.06327496]
[1770459256215,1.24493175,2011.4,2010.9,1.06327496]
[1770459257919,0.002,2011.4,2010.9,1.06327496]
[1770459258941,0.002,2011.4,2010.7,1.12227496]
[1770459262638,0.002,2011.4,2010.8,1.12127496]
[1770459264824,0.002,2011.4,2010.9,1.12127496]
[1770459266732,0.002,2011.4,2010.9,1.12227496]
[1770459266949,0.002,2011.2,2011.0,1.12127496]
[1770459268956,0.002,2011.2,2009.0,9.48126525]
[1770459268957,1.06856626,2011.0,2009.8,0.001]
[1770459269252,0.25845607,2009.8,2009.7,0.002]
[1770459269549,0.25845607,2009.8,2009.1,1.12127496]
[1770459269735,0.25845607,2009.8,2009.3,1.12127496]
[1770459269930,1.05719461,2009.7,2009.1,1.12127496]
[1770459270137,1.05719461,2009.6,2009.1,1.12127496]
[1770459270328,1.05719461,2009.5,2009.1,1.12127496]
[1770459270530,1.05719461,2009.4,2009.1,1.12127496]
[1770459270758,1.05719461,2009.3,2008.9,1.12127496]
[1770459270958,0.25845607,2009.8,2008.8,1.24452409]
[1770459270959,1.24396676,2009.7,2008.8,1.24452409]
[1770459271146,2.31253302,2009.7,2008.8,1.24452409]
[1770459271664,2.31253302,2009.7,2008.7,2.36583261]
[1770459271867,1.06856626,2009.6,2008.6,1.24461199]
[1770459272365,1.06856626,2009.6,2008.5,4.97877264]
[1770459272667,1.06856626,2009.6,2008.7,1.24457439]
[1770459272964,1.06856626,2009.4,2008.5,1.2446774]
[1770459273268,1.24409056,2009.5,2008.6,1.24463419]
[1770459274074,1.06856626,2009.4,2008.4,2.36599325]
[1770459274244,1.79746817,2009.4,2008.5,1.24469076]
[1770459274566,1.79746817,2009.4,2008.4,2.36604388]
[1770459274951,1.2442144,2009.3,2008.4,2.36604388]
[1770459276865,2.8294324,2009.3,2008.4,2.36604388]
[1770459277068,1.2442144,2009.3,2008.4,2.36604388]
[1770459277641,1.585218,2009.2,2008.0,1.51081703]
[1770459277857,1.585218,2009.2,2008.2,1.24486552]
[1770459278071,1.585218,2009.2,2008.3,1.24483038]
[1770459278257,1.585218,2009.2,2008.6,0.001]
[1770459278452,0.28294324,2009.1,2008.6,0.001]
[1770459279068,0.28294324,2009.1,2008.4,0.001]
[1770459279069,1.585218,2008.9,2008.4,0.001]
[1770459279565,1.585218,2008.9,2008.0,1.24501992]
[1770459279773,1.585218,2008.9,2007.7,1.5148288]
[1770459279975,1.585218,2008.9,2007.9,1.2450432]
[1770459280144,1.585218,2008.9,2007.8,1.2450836]
[1770459280350,1.585218,2008.7,2007.9,0.27599124]
[1770459280563,2.82961819,2009.0,2007.9,1.24506862]
[1770459281277,1.585218,2008.9,2007.8,6.49915738]
[1770459281456,1.585218,2008.9,2007.9,1.51860272]
[1770459282874,1.585218,2008.9,2007.8,1.24514393]
[1770459283245,1.24452409,2008.8,2007.7,6.50277843]
[1770459283451,1.585218,2009.0,2007.8,1.52203425]
[1770459284356,1.585218,2009.0,2007.8,1.52361582]
[1770459286156,1.24446214,2008.9,2007.9,2.77166264]
[1770459286380,2.82968014,2008.9,2007.9,2.77166264]
[1770459286580,1.24446214,2008.9,2008.0,1.52658072]
[1770459286877,1.24444726,2009.0,2008.0,1.52658072]
[1770459287465,2.82966526,2009.0,2008.0,1.52658072]
[1770459288393,2.82966526,2009.0,2008.1,1.24495792]
[1770459289697,1.585218,2008.9,2008.0,1.24501022]
[1770459289892,0.28296653,2008.8,2008.0,1.24501022]
[1770459290098,1.24444726,2009.0,2008.1,0.01608195]
[1770459290270,2.82966526,2009.0,2008.1,1.26097987]
[1770459291077,2.8296238,2009.0,2008.1,2.79383201]
[1770459291676,0.002,2009.2,2008.2,1.53285214]
[1770459291997,0.002,2009.2,2008.3,1.54893248]
[1770459292382,0.002,2009.2,2008.5,1.53390742]
[1770459292586,0.002,2009.2,2008.6,0.29394587]
[1770459292775,0.002,2009.2,2008.6,0.27786794]
[1770459294305,1.587218,2009.2,2008.5,0.01607793]
[1770459294480,1.587218,2009.2,2008.4,1.24472377]
[1770459294807,1.587218,2009.2,2008.5,1.24469995]
[1770459295302,1.587218,2009.2,2008.6,1.26215813]
[1770459295303,0.002,2009.2,2008.6,1.26215813]
[1770459295986,0.002,2009.2,2008.7,1.53751898]
[1770459296183,0.002,2009.2,2008.8,0.27996771]
[1770459296389,0.002,2009.2,2008.9,1.24446214]
[1770459296586,1.585218,2010.0,2009.0,1.53751898]
[1770459296906,1.24368565,2010.2,2009.0,1.53751898]
[1770459296907,2.8288944,2010.2,2009.0,1.53751898]
[1770459297108,2.36576984,2010.2,2009.1,1.81453548]
[1770459297405,1.585218,2010.2,2009.1,1.81453548]
[1770459297587,1.24559757,2010.3,2009.1,1.81453548]
[1770459297907,0.002,2010.3,2009.1,1.81453548]
[1770459298409,0.002,2010.3,2009.3,1.53710457]
[1770459298701,0.002,2010.3,2009.4,1.53710457]
[1770459298904,0.002,2010.3,2009.6,1.53710457]
[1770459299408,0.002,2010.3,2009.7,1.5377351]
[1770459299905,0.002,2011.2,2010.0,1.5377351]
[1770459300288,2.83030721,2011.2,2010.1,1.24371921]
[1770459300614,1.585218,2011.1,2010.1,1.24371921]
[1770459300812,1.86824872,2011.0,2010.0,1.24376127]
[1770459301023,1.86824872,2011.0,2009.9,1.24379688]
[1770459301185,1.86824872,2011.0,2009.4,1.53889423]
[1770459301186,1.585218,2010.8,2009.8,1.24388845]
[1770459301513,1.585218,2010.5,2009.6,1.24402767]
[1770459301712,1.585218,2010.5,2009.7,1.24396663]
[1770459301911,1.585218,2010.5,2009.4,4.97653899]
[1770459302126,2.03503322,2010.8,2010.0,1.24376341]
[1770459302327,1.52622921,2011.0,2009.9,4.97512437]
[1770459302488,3.11144721,2011.0,2009.9,4.97512437]
[1770459302819,1.585218,2010.9,2009.9,1.24384297]
[1770459303605,11.26090707,2010.9,2009.8,1.24388183]
[1770459303905,1.585218,2010.7,2009.7,1.2439608]
[1770459304078,1.585218,2010.7,2009.8,1.24389745]
[1770459304908,1.585218,2010.5,2009.3,6.51700291]
[1770459305804,1.585218,2010.5,2009.3,4.97684546]
[1770459307084,1.71996462,2010.3,2009.1,6.5235243]
[1770459307311,2.01631444,2010.2,2009.1,6.5235243]
[1770459307610,2.01631444,2010.2,2009.1,4.97685761]
[1770459308221,2.01631444,2010.2,2009.2,0.01792653]
[1770459308719,0.29634982,2010.2,2009.2,1.56468145]
[1770459308914,1.71996462,2010.4,2009.2,0.01792653]
[1770459309109,1.71996462,2010.2,2009.3,1.2442144]
[1770459309306,1.71996462,2010.2,2009.4,0.01792474]
[1770459309504,1.71996462,2010.2,2009.3,1.26213914]
[1770459310817,11.26090707,2010.9,2009.3,2.81424913]
[1770459311021,1.65842926,2010.6,2009.5,1.24409056]
[1770459311207,1.65842926,2010.6,2009.6,0.01792206]
[1770459311589,1.65842926,2010.6,2009.6,1.57003205]
[1770459312432,0.002,2010.8,2009.7,1.55194014]
[1770459312598,0.002,2010.8,2009.8,0.01792027]
[1770459312799,0.32086241,2010.8,2009.8,1.56986041]
[1770459313096,0.32086241,2010.8,2009.9,1.24384297]
[1770459313328,0.32086241,2010.8,2010.0,0.01791848]
[1770459313529,0.002,2010.8,2010.0,1.56963794]
[1770459314206,0.002,2010.8,2010.0,0.01791848]
[1770459314406,1.66042926,2010.8,2009.9,1.24384297]
[1770459315133,1.66042926,2010.8,2009.5,1.24409056]
[1770459315301,1.94879798,2010.7,2009.5,1.24409056]
[1770459316416,1.94879798,2010.7,2009.8,0.001]
[1770459316798,0.002,2010.5,2009.8,0.001]
[1770459317420,0.002,2010.5,2009.8,0.05062328]
[1770459319297,0.002,2010.5,2009.9,1.24384297]
[1770459319536,0.002,2010.5,2009.9,1.29346131]
[1770459320913,1.66042926,2010.5,2009.8,1.24486749]
[1770459322123,1.66042926,2010.5,2009.9,0.0496134]
[1770459322436,1.66042926,2010.5,2009.8,1.29448089]
[1770459323133,1e-08,2010.7,2009.8,2.84160236]
[1770459325335,1e-08,2010.7,2010.0,1.24378109]
[1770459325507,1e-08,2010.7,2010.1,0.32941821]
[1770459327227,1e-08,2010.7,2010.1,1.88210854]
[1770459327429,1e-08,2010.7,2010.2,1.24365734]
[1770459327737,1e-08,2010.7,2010.3,0.04960105]
[1770459330033,1e-08,2010.7,2010.4,1.24353362]
[1770459330235,1e-08,2010.7,2010.4,1.91985665]
[1770459330815,0.002,2010.5,2010.4,1.91985665]
[1770459333229,1e-08,2010.7,2010.4,1.91985665]
[1770459333431,1e-08,2010.7,2010.4,1.24353362]
[1770459333627,1.65842927,2010.7,2010.2,1.24365375]
[1770459333945,1.65842927,2010.7,2010.1,1.24471883]
[1770459334141,1.65842927,2010.7,2010.1,0.001]
[1770459337221,1e-08,2010.7,2010.1,0.001]
[1770459338458,1e-08,2010.7,2010.1,1.24471921]
[1770459339446,1e-08,2010.7,2010.2,0.04974629]
[1770459339847,1e-08,2010.7,2010.1,1.24471921]
[1770459344045,1e-08,2010.7,2010.3,0.001]
[1770459344250,0.002,2010.5,2010.3,0.001]
[1770459347069,1.6188668,2010.5,2010.3,0.001]
[1770459347364,0.002,2010.5,2010.3,0.001]
[1770459349873,1.6188668,2010.5,2010.3,0.001]
[1770459352348,0.28622769,2010.4,2010.3,0.001]
[1770459352947,1.90309449,2010.4,2010.3,0.001]
[1770459355053,1.90309449,2010.4,2010.1,0.001]
[1770459356155,0.002,2010.5,2010.1,0.001]
[1770459356675,1.6188668,2010.5,2010.1,0.001]
[1770459357261,0.002,2010.3,2010.1,0.001]
[1770459360067,1.6188668,2010.3,2010.1,0.001]
[1770459361563,0.002,2010.3,2010.1,0.001]
[1770459364887,0.002,2010.3,2010.1,0.05073141]
[1770459366262,0.002,2010.3,2010.1,0.001]
[1770459366460,0.002,2010.3,2010.1,0.05072646]
[1770459366678,0.002,2010.3,2010.1,0.001]
[1770459367288,1.67998326,2010.3,2010.1,0.001]
[1770459368195,0.002,2010.3,2010.1,0.001]
[1770459369585,1.7113332,2010.3,2010.1,0.001]
[1770459370167,1.7113332,2010.3,2009.9,0.001]
[1770459370599,0.29549149,2010.2,2009.9,0.001]
[1770459370890,2.00482469,2010.2,2009.9,0.001]
[1770459372101,0.29549149,2010.2,2009.9,0.001]
[1770459372574,1.7113332,2010.3,2009.9,0.001]
[1770459373379,1.7093332,2010.2,2009.9,0.001]
[1770459374793,1.7093332,2010.1,2009.9,0.001]
[1770459375169,1.7093332,2010.1,2009.5,0.001]
[1770459377302,1.7093332,2009.9,2009.5,0.001]
[1770459377515,2.50213431,2009.9,2009.5,0.001]
[1770459378310,2.50213431,2009.9,2009.5,0.001]
[1770459378674,1.7093332,2009.9,2009.5,0.001]
[1770459379630,1.24387708,2009.9,2009.5,0.001]
[1770459379776,1.7093332,2009.8,2009.5,0.001]
[1770459380112,1.7093332,2009.8,2008.8,4.97801977]
[1770459380308,12.17657867,2009.8,2008.8,1.24447694]
[1770459380480,1.7093332,2009.6,2008.8,1.24449502]
[1770459380811,1.7093332,2009.6,2008.8,1.24447581]
[1770459381198,1.7093332,2009.6,2008.7,0.001]
[1770459381399,1.7093332,2009.6,2008.8,1.24452336]
[1770459381896,1.7093332,2009.4,2008.7,0.001]
[1770459382215,2.50229514,2009.4,2008.7,0.001]
[1770459384200,3.74647024,2009.4,2008.7,0.001]
[1770459384625,1.7093332,2009.3,2008.7,0.001]
[1770459389424,2.95354974,2009.3,2008.7,0.001]
[1770459389728,1.7093332,2009.3,2008.7,0.001]
[1770459389934,2.58163339,2009.3,2008.7,0.001]
[1770459390109,0.87230019,2009.3,2008.7,0.001]
[1770459390309,2.58163339,2009.3,2008.7,0.001]
[1770459390712,0.87230019,2009.3,2008.7,0.001]
[1770459391034,1.7093332,2009.2,2008.7,0.001]
[1770459391951,1.7093332,2009.4,2008.7,0.001]
[1770459393235,1.7093332,2009.4,2008.7,1.44462414]
[1770459393461,2.95336537,2009.6,2008.7,1.44462414]
[1770459393939,2.95336537,2009.6,2008.9,0.001]
[1770459394240,1.7113332,2009.6,2008.9,0.001]
[1770459394812,1.7093332,2009.5,2008.9,0.001]
[1770459395131,0.29553969,2009.4,2008.9,0.001]
[1770459395333,1.7093332,2009.4,2008.9,0.001]
[1770459395938,2.95539692,2009.6,2008.9,0.001]
[1770459397039,1.57222997,2009.5,2008.9,0.001]
[1770459397512,9.77372205,2009.4,2008.9,0.001]
[1770459399756,11.34595202,2009.4,2008.9,0.001]
[1770459399954,12.60515684,2009.4,2008.9,0.001]
[1770459400251,1.57222997,2009.3,2008.9,0.001]
[1770459401314,12.60515684,2009.4,2008.9,0.001]
[1770459401634,1.57222997,2009.3,2008.9,0.001]
[1770459402439,1.25920482,2009.4,2008.9,0.001]
[1770459402646,0.002,2009.6,2009.1,1.42297912]
[1770459402951,9.77572205,2009.6,2008.9,1.68835661]
[1770459403140,11.34795202,2009.6,2008.9,0.26795157]
[1770459403314,12.59198966,2009.6,2008.9,0.26795157]
[1770459403514,11.34795202,2009.6,2008.9,0.26795157]
[1770459404128,9.77572205,2009.6,2009.0,1.24440019]
[1770459404442,0.002,2009.6,2009.1,0.64899544]
[1770459405928,0.002,2009.6,2009.2,1.4152465]
[1770459406327,0.002,2009.6,2009.3,1.2442144]
[1770459407930,0.002,2009.6,2009.3,2.65163831]
[1770459408620,0.002,2009.6,2009.4,1.40742391]
[1770459408830,0.002,2009.6,2009.5,0.26516383]
[1770459409538,0.002,2009.6,2009.3,1.2442144]
[1770459410319,0.002,2010.1,2009.6,1.40217592]
[1770459410520,0.002,2010.1,2009.5,1.24409056]
[1770459411251,0.002,2010.1,2009.5,2.64176]